Cogmind - Beta 13 @@@ ROGUE MODE // 2024.03.31 @ 17:57:33 Player: f_ Result: Self-destructed Performance ------------- Evolutions (3) 1500 Regions Visited (6) 1200 Robots Destroyed (51) 255 Value Destroyed (1277) 1277 Prototype IDs (36) 720 Alien Tech Used (0) 0 Bonus (300) 300 TOTAL SCORE: 5252 Bonus ------- Aligned with FarCom 300 Cogmind --------- Core Integrity 329/700 Matter 190/300 Energy 100/100 System Corruption 4% Temperature Cool (0) Movement Core (50) Location -7/Factory Parts ------- > --- POWER (1) -------- (None) > --- PROPULSION (4) --- (None) > --- UTILITY (6) ------ Improved Melee Analysis Suite Core Analyzer System Shield > --- WEAPON (2) ------- (None) > --- INVENTORY (5) ---- Microactuators Arc Projector Beam Cannon Datajack Peak State ------------ > --- POWER ------------ Light Nuclear Core > --- PROPULSION ------- Xenon Bombardment Thruster Xenon Bombardment Thruster Xenon Bombardment Thruster > --- UTILITY ---------- Signal Interpreter Improved Melee Analysis Suite Core Analyzer Microactuators System Shield System Shield > --- WEAPON ----------- Powered Hammer Powered Hammer > --- INVENTORY -------- Arc Projector Beam Cannon Datajack [Rating: 42] Favorites ----------- Power Light Deuterium Engine Engine Light Deuterium Engine Power Core Light Nuclear Core Propulsion Flight Unit Wheel Compact Wheel Hover Unit Hover Unit Flight Unit Flight Unit Utility Signal Interpreter Device Sensor Array Storage Small Storage Unit Processor Signal Interpreter Hackware System Shield Weapon Powered Hammer Energy Gun Small Laser Energy Cannon Beam Cannon Ballistic Gun Assault Rifle Impact Weapon Powered Hammer Build | -11 -10 -10 -10 -9 -8 -7 ------- Run | Yrd Mat Min Exi Min Mat Fac Slots Evolved 6 | . . . . . 4 2 Power . | . . . . . . . Propulsion 2 | . . . . . 2 . Utility 4 | . . . . . 2 2 Weapon . | . . . . . . . Parts Attached 49 | 6 6 8 . . 18 11 Power 6 | 1 1 2 . . 2 . Engine 5 | 1 1 2 . . 1 . Core 1 | . . . . . 1 . Reactor . | . . . . . . . Propulsion 18 | 2 1 2 . . 9 4 Treads . | . . . . . . . Leg . | . . . . . . . Wheel 3 | 2 1 . . . . . Hover 7 | . . . . . 6 1 Flight 8 | . . 2 . . 3 3 Utility 14 | 1 2 3 . . 2 6 Device 5 | . 1 2 . . . 2 Storage 3 | 1 1 . . . . 1 Processor 3 | . . 1 . . . 2 Hackware 3 | . . . . . 2 1 Protection . | . . . . . . . Artifact . | . . . . . . . Weapon 11 | 2 2 1 . . 5 1 Energy Gun 4 | 2 . 1 . . 1 . Energy Cannon 1 | . 1 . . . . . Ballistic Gun 2 | . 1 . . . 1 . Ballistic Cannon . | . . . . . . . Launcher . | . . . . . . . Special Weapon . | . . . . . . . Impact Weapon 4 | . . . . . 3 1 Slashing Weapon . | . . . . . . . Piercing Weapon . | . . . . . . . Special Melee Weapon . | . . . . . . . Unidentified Prototypes 4 | . . 1 . . 3 . Parts Lost 18 | . 2 2 . . 8 6 Power 3 | . 1 . . . 1 1 Propulsion 11 | . 1 2 . . 6 2 Utility 4 | . . . . . 1 3 Weapon . | . . . . . . . Highest Loss Streak 4 | . 2 2 . . 4 4 To Critical Strikes . | . . . . . . . Average Slot Usage (%) 78 | . 93 88 100 100 65 74 Engine 8 | . 13 14 14 14 6 . Core 1 | . . . . . 1 5 Wheel 7 | . 25 1 . . . . Hover 4 | . . . . . 8 4 Flight 13 | . . 23 28 28 17 16 Device 5 | . 11 14 14 14 . 2 Storage 4 | . 14 1 . . . 1 Processor 7 | . . 4 14 14 9 16 Hackware 6 | . . . . . 10 12 Energy Gun 3 | . 7 7 14 14 . . Energy Cannon 3 | . 10 6 . . . . Ballistic Gun 5 | . 10 14 14 14 2 . Impact Weapon 6 | . . . . . 9 14 Naked Turns . | . . . . . . . Heaviest Build 51 | 11 51 51 7 7 15 21 Greatest Support 31 | 26 26 10 8 8 28 31 Greatest Overweight (x) 5 | . 1 5 . . 1 . Average Overweight (x) . | . . . . . . . Largest Inventory Capacity 20 | 8 20 20 5 5 5 10 Average Capacity 6 | 6 8 6 5 5 5 5 Most Carried 8 | 4 8 8 5 5 5 6 Average Carried 4 | 1 5 5 4 5 4 3 Final Capacity 20 | 8 20 5 5 5 5 5 Final Carried 8 | 1 8 5 5 5 3 4 Class Distribution -------------------- 51% | Mutant 20% | Hacker-Mutant 12% | Sprinter 4% | Hacker-Gladiator 3% | Gladiator 3% | Hacker-Sprinter Dominant Class ---------------- Mutant | -10/Materials Mutant | -10/Mines Mutant | -10/Exiles Scout | -9/Mines Hacker-Mutant | -8/Materials Hacker-Mutant | -7/Factory Resources | -11 -10 -10 -10 -9 -8 -7 ----------- Run | Yrd Mat Min Exi Min Mat Fac Matter Collected 599 | 54 255 28 . . 262 . Remotely . | . . . . . . . Salvage Created 1475 | . 619 98 . . 758 . Parts 94 | . 31 11 . . 52 . Haulers Intercepted 2 | . 1 . . . 1 . Recyclers Shooed . | . . . . . . . Parts Field Recycled . | . . . . . . . Retrieved Matter . | . . . . . . . Parts Self-Destructed . | . . . . . . . Prevented . | . . . . . . . Kills | -11 -10 -10 -10 -9 -8 -7 ------- Run | Yrd Mat Min Exi Min Mat Fac Combat Hostiles Destroyed 35 | . 13 6 . . 16 . Melee 4 | . . . . . 4 . Guns 18 | . 4 6 . . 8 . Cannons 8 | . 8 . . . . . Classes Destroyed 10 | . 5 1 . . 4 . Worker 4 | . 1 . . . 3 . Builder 3 | . . . . . 3 . Hauler 2 | . 1 . . . 1 . Operator 2 | . 1 . . . 1 . Watcher 5 | . 2 . . . 3 . Swarmer 12 | . . 6 . . 6 . Grunt 19 | . 13 . . . 6 . Duelist 1 | . . . . . 1 . Sentry 2 | . . . . . 2 . Hunter 1 | . . . . . 1 . Best Kill Streak 10 | . 5 3 . . 10 . Combat Bots Only 5 | . 5 3 . . 5 . Max Kills in Single Turn 3 | . 1 1 . . 3 . Gunslinging . | . . . . . . . Exploded . | . . . . . . . Melee 1 | . . . . . 1 . Uniques/NPCs Destroyed . | . . . . . . . Combat | -11 -10 -10 -10 -9 -8 -7 -------- Run | Yrd Mat Min Exi Min Mat Fac Hostile Shots Fired 252 | . 51 30 . . 113 58 Missed 113 | . 20 9 . . 53 31 Damage Taken 2036 | . 403 170 . . 811 652 Core 751 | . 102 53 . . 225 371 Absorbed by Shields . | . . . . . . . Core Remaining (%) 65 | 100 . . . 38 59 . Volleys Fired 79 | . 65 13 . . 1 . Largest 2 | . 2 2 . . 2 . Hottest 90 | . 90 80 . . 60 . Shots Fired 148 | . 75 18 . . 55 . Gun 88 | . 20 13 . . 55 . Cannon 60 | . 55 5 . . . . Launcher . | . . . . . . . Special . | . . . . . . . Kinetic 70 | . 3 13 . . 54 . Thermal 78 | . 72 5 . . 1 . Explosive . | . . . . . . . Electromagnetic . | . . . . . . . Robot Hit Streak 10 | . 8 5 . . 10 . Robot Miss Streak 4 | . 4 2 . . 3 . Penetration Max . | . . . . . . . Secondary Targets . | . . . . . . . Autonomous 54 | . . . . . 54 . Shots Hit Robots 124 | . 51 10 . . 63 . Core Hits 52 | . 23 6 . . 23 . Critical Kills 1 | . 1 . . . . . Critical Parts Destroyed 3 | . . . . . 3 . Critical Strikes 4 | . 1 . . . 3 . Meltdown 1 | . 1 . . . . . Destroy 1 | . . . . . 1 . Smash 2 | . . . . . 2 . Melee Attacks 50 | . . . . . 47 3 Impact 50 | . . . . . 47 3 Slashing . | . . . . . . . Piercing . | . . . . . . . Sneak Attacks 4 | . . . . . 4 . Combat Hostiles . | . . . . . . . Follow-up Attacks 4 | . . . . . 4 . Damage Inflicted 3560 | . 834 160 . . 2566 . Guns 1545 | . 164 107 . . 1274 . Cannons 723 | . 670 53 . . . . Explosions 136 | . . . . . 136 . Melee 1156 | . . . . . 1156 . Ramming . | . . . . . . . Kinetic 1379 | . 10 107 . . 1262 . Thermal 1025 | . 824 53 . . 148 . Explosive . | . . . . . . . Electromagnetic . | . . . . . . . Impact 1156 | . . . . . 1156 . Slashing . | . . . . . . . Piercing . | . . . . . . . Highest Corruption 4 | . . . . . 2 4 Average Corruption 2 | . . . . . 2 4 Corruption Purged . | . . . . . . . Corruption Blocked . | . . . . . . . Effects 15 | . . . . . 14 1 Message Errors 3 | . . . . . 3 . Matter Fused 5 | . . . . . 5 . Heat Flow Errors 4 | . . . . . 3 1 Energy Discharges 1 | . . . . . 1 . Data Loss (minor) 1 | . . . . . 1 . Alerts 1 | . . . . . 1 . Overload Shots . | . . . . . . . Overflow Damage 274 | . . . . . 274 . Projectiles . | . . . . . . . Explosions 4 | . . . . . 4 . Melee 270 | . . . . . 270 . Knockbacks 4 | . . . . . 4 . Impact 4 | . . . . . 4 . Kinetic . | . . . . . . . Secondary . | . . . . . . . Self-Inflicted Damage . | . . . . . . . Shots . | . . . . . . . Rammed . | . . . . . . . Targets Rammed . | . . . . . . . Kicked . | . . . . . . . Crushed . | . . . . . . . Highest Temperature 268 | . 268 54 . . 216 81 Average Temperature 86 | . 96 29 . . 68 44 Received Heat Transfer 639 | . 225 . . . 333 81 Effects 1 | . 1 . . . . . Energy Bleed 1 | . 1 . . . . . Siege Activations . | . . . . . . . Robots Corrupted . | . . . . . . . Combat Hostiles . | . . . . . . . Parts Fried 3 | . . . . . 3 . Impact Corruptions 12 | . . . . . 12 . Robots Melted 1 | . 1 . . . . . Combat Hostiles 1 | . 1 . . . . . Parts Melted 3 | . 3 . . . . . Heat Transferred 2101 | . 1815 111 . . 175 . Parts Sabotaged . | . . . . . . . Parts Stolen . | . . . . . . . Parts Stripped . | . . . . . . . Power Chain Reactions . | . . . . . . . Alert | -11 -10 -10 -10 -9 -8 -7 ------- Run | Yrd Mat Min Exi Min Mat Fac Peak Influence 421 | . 387 180 . . 421 240 Initial 135 | . . 37 . . . 135 Average 134 | . 165 131 . . 112 160 Maximum Alert Level 2 | . 1 . . . 2 1 Low Security (%) 79 | 100 63 100 . 100 80 91 Level 1 17 | . 36 . . . 13 8 Level 2 2 | . . . . . 5 . Level 3 . | . . . . . . . Level 4 . | . . . . . . . Level 5 . | . . . . . . . High Security . | . . . . . . . Max Security . | . . . . . . . Squads Dispatched 17 | . 3 . . . 8 6 Investigation 10 | . 2 . . . 6 2 Extermination 1 | . . . . . . 1 Reinforcement 4 | . 1 . . . . 3 Assault . | . . . . . . . Garrison 2 | . . . . . 2 . Intercept . | . . . . . . . Searches Triggered . | . . . . . . . Construction Impeded . | . . . . . . . Haulers Reinforced . | . . . . . . . Active Scanning Responses . | . . . . . . . Cargo Convoy Interrupts . | . . . . . . . Stealth | -11 -10 -10 -10 -9 -8 -7 --------- Run | Yrd Mat Min Exi Min Mat Fac Distress Signals 5 | . 2 . . . 2 1 Communications Jammed . | . . . . . . . Distress Signals . | . . . . . . . Times Spotted 91 | . 24 6 . . 43 18 Peak Tracking Total 10 | . 6 3 . . 10 9 Tactical Retreats 10 | . . . . . 7 3 Traps | -11 -10 -10 -10 -9 -8 -7 ------- Run | Yrd Mat Min Exi Min Mat Fac Traps Triggered 1 | . . . . . 1 . Indirectly . | . . . . . . . Trap Hack Attempts . | . . . . . . . Triggered . | . . . . . . . Disarmed . | . . . . . . . Reprogrammed . | . . . . . . . Reused . | . . . . . . . Traps Extracted . | . . . . . . . Installed . | . . . . . . . Triggered . | . . . . . . . Machines | -11 -10 -10 -10 -9 -8 -7 ---------- Run | Yrd Mat Min Exi Min Mat Fac Machines Disabled 4 | . . . . . 4 . Max in Single Turn 1 | . . . . . 1 . Machines Repaired . | . . . . . . . Machines Dismantled . | . . . . . . . Machines Sabotaged . | . . . . . . . Overloaded Fab Kills . | . . . . . . . Hacking | -11 -10 -10 -10 -9 -8 -7 --------- Run | Yrd Mat Min Exi Min Mat Fac Machines Accessed 28 | . 6 1 2 . 11 8 Terminals 23 | . 6 1 . . 10 6 Fabricators 1 | . . . . . . 1 Repair Stations . | . . . . . . . Recycling Units . | . . . . . . . Scanalyzers 1 | . . . . . . 1 Garrison Access 1 | . . . . . 1 . Total Hacks 106 | . 24 2 2 . 49 29 Successful 40 | . 8 2 2 . 16 12 Failed 66 | . 16 . . . 33 17 Catastrophic 13 | . 1 . . . 7 5 Database Lockouts . | . . . . . . . Manual 84 | . 24 2 1 . 38 19 Terminals 99 | . 24 2 . . 46 27 Fabricators 1 | . . . . . . 1 Repair Stations . | . . . . . . . Recycling Units . | . . . . . . . Scanalyzers 1 | . . . . . . 1 Garrison Access 3 | . . . . . 3 . Terminal Hacks 32 | . 6 2 2 . 14 8 Record 2 | . . . 1 . 1 . Part Schematic 1 | . . . . . 1 . Prototype ID Bank 6 | . 2 . . . 3 1 Open DSF 1 | . . . . . . 1 Level Access Points 2 | . . 1 . . . 1 Branch Access Points 3 | . 1 1 . . 1 . Terminal Index 3 | . 1 . . . 1 1 Garrison Index 1 | . . . . . 1 . Alert Level 6 | . 1 . . . 4 1 Unreport Threat 3 | . 1 . . . 2 . Investigation Status 1 | . . . . . . 1 Registered Components 1 | . . . . . . 1 Registered Prototypes 1 | . . . . . . 1 Derelict Proto ID Bank 1 | . . . 1 . . . Fabricator Hacks 1 | . . . . . . 1 Load Schematic 1 | . . . . . . 1 Repair Station Hacks . | . . . . . . . Recycling Unit Hacks . | . . . . . . . Scanalyzer . | . . . . . . . Garrison Access Hacks . | . . . . . . . Unauthorized Hacks 7 | . 2 . . . 2 3 Terminals 7 | . 2 . . . 2 3 Assimilate 1 | . . . . . . 1 Botnet 6 | . 2 . . . 2 2 Fabricators . | . . . . . . . Repair Stations . | . . . . . . . Recycling Units . | . . . . . . . Scanalyzers . | . . . . . . . Garrison Access . | . . . . . . . Data Cores Recovered 1 | . . . . . 1 . Used 1 | . . . . . 1 . Hacking Detections 21 | . 6 1 . . 10 4 Full Trace Events 16 | . 6 . . . 8 2 Feedback Events . | . . . . . . . Feedback Blocked . | . . . . . . . Robot Schematics Acquired . | . . . . . . . Robots Built . | . . . . . . . Authchips . | . . . . . . . Time . | . . . . . . . Total Robot Build Rating . | . . . . . . . Part Schematics Acquired 1 | . . . . . 1 . Parts Built . | . . . . . . . Authchips . | . . . . . . . Time . | . . . . . . . Total Part Build Rating . | . . . . . . . Parts Repaired . | . . . . . . . Time . | . . . . . . . Parts Recycled . | . . . . . . . Recycled Matter . | . . . . . . . Retrieved Matter . | . . . . . . . Retrieved Components . | . . . . . . . Parts Scanalyzed . | . . . . . . . Part Schematics Acquired . | . . . . . . . Parts Damaged . | . . . . . . . Bothacking | -11 -10 -10 -10 -9 -8 -7 ------------ Run | Yrd Mat Min Exi Min Mat Fac Used RIF Installer . | . . . . . . . Robots Hacked . | . . . . . . . Non-combat . | . . . . . . . Combat . | . . . . . . . Robot Hacks Applied . | . . . . . . . Relay Couplers Released . | . . . . . . . Fabnet Peak Effective % . | . . . . . . . Robots Rewired . | . . . . . . . Allies Hacked . | . . . . . . . Hacks Repelled . | . . . . . . . Allies | -11 -10 -10 -10 -9 -8 -7 -------- Run | Yrd Mat Min Exi Min Mat Fac Total Allies 1 | . . . . . . 1 Largest Group 1 | . . . . . . 1 Highest-Rated Group 10 | . . . . . . 10 Highest-Rated Ally 10 | . . . . . . 10 Total Orders . | . . . . . . . Ally Attacks . | . . . . . . . Total Damage . | . . . . . . . Kills . | . . . . . . . Allies Corrupted . | . . . . . . . Allies Melted . | . . . . . . . Intel | -11 -10 -10 -10 -9 -8 -7 ------- Run | Yrd Mat Min Exi Min Mat Fac Robot Analysis Total . | . . . . . . . Derelict Logs Recovered 2 | . . 1 . 1 . . Drone Launches . | . . . . . . . Drone Recoveries . | . . . . . . . Exploration | -11 -10 -10 -10 -9 -8 -7 ------------- Run | Yrd Mat Min Exi Min Mat Fac Turns Passed 2434 | 48 667 209 79 15 1013 403 Spaces Moved 3201 | 43 503 309 207 39 1240 860 Core 20 | 9 . 4 . . . 7 Treads . | . . . . . . . Legs . | . . . . . . . Wheels 538 | 34 503 1 . . . . Hover 675 | . . . . . 566 109 Flight 1968 | . . 304 207 39 674 744 Fastest Speed 28 | 50 90 37 37 37 28 34 Average Speed 48 | 81 92 52 37 37 39 36 Slowest Speed 200 | 90 105 200 37 37 115 50 Overloaded Moves . | . . . . . . . Propulsion Burnouts . | . . . . . . . Robots Hopped . | . . . . . . . Cave-ins Triggered . | . . . . . . . Exploration Rate (%) 47 | 3 82 75 59 11 77 25 Regions Visited 6 Branch Regions 3 Pre-discovered Areas 1 | . . . 1 . . . Known Exits Taken 5 | . 1 1 1 1 1 . Unknown Exits Taken 1 | 1 . . . . . . Scrap Searched . | . . . . . . . Spaces Dug 12 | . . . . . 12 . Terrain Destroyed 44 | . . . . . 44 . Melee 12 | . . . . . 12 . Projectile 18 | . . . . . 18 . AOE 14 | . . . . . 14 . Terrain Rammed . | . . . . . . . Walls Destroyed . | . . . . . . . Machines Disabled . | . . . . . . . Actions | -11 -10 -10 -10 -9 -8 -7 --------- Run | Yrd Mat Min Exi Min Mat Fac Total 3899 | 55 629 336 209 38 1690 942 Wait 469 | . 42 . . . 375 52 Move 3195 | 42 502 308 206 38 1239 860 Hop . | . . . . . . . Pick Up 37 | 7 12 . 1 . 6 11 Fast Attach 13 | . . 4 . . 9 . Attach 23 | 6 3 . . . 7 7 Detach 1 | . . . . . 1 . Swap 13 | . 3 4 . . 2 4 Drop 25 | . 2 7 2 . 9 5 Fire 79 | . 65 13 . . 1 . Melee 44 | . . . . . 41 3 Ram . | . . . . . . . Kick . | . . . . . . . Crush . | . . . . . . . Escape Stasis . | . . . . . . . Rewire . | . . . . . . . Trap . | . . . . . . . Miscellaneous . | . . . . . . . Route ------- -11/Scrapyard -10/Materials (discovered 5 exits: *Mat x2 / *Min x2 / [*Sub]) -10/Mines (discovered 3 exits: *Mat x2 / *Exi) -10/Exiles -9/Mines -8/Materials -7/Factory (discovered 4 exits: Fac x4) History --------- Turn | Location | Event 14 | -11/Scrapyard | Discovered new exit (range 16) 49 | -11/Scrapyard | Entered Materials 132 | -10/Materials | Identified exit to Mines 222 | -10/Materials | Discovered new exit (range 16) 315 | -10/Materials | Build established: Mutant 440 | -10/Materials | Discovered new exit (range 12) 463 | -10/Materials | Discovered new exit (range 7) 716 | -10/Materials | Entered Mines 721 | -10/Mines | Core integrity fell below 50% 806 | -10/Mines | Found a damaged Exp. Sensor Array with a note attached 809 | -10/Mines | Found Prototype Device 809 | -10/Mines | Identified Exp. Sensor Array 815 | -10/Mines | Discovered new exit (range 6) 818 | -10/Mines | Identified exit to Materials 896 | -10/Mines | Learned location of 1 exit from Materials 924 | -10/Mines | Deemed a non-threat by the Exiles lab entrance 924 | -10/Mines | Discovered new exit (range 5) 925 | -10/Mines | Identified exit to Exiles 925 | -10/Mines | Entered Exiles 935 | -10/Exiles | Met 8R-AWN 940 | -10/Exiles | Met EX-HEX 951 | -10/Exiles | Met EX-BIN 956 | -10/Exiles | Aligned with FarCom system 956 | -10/Exiles | Given EX-Vault access code 965 | -10/Exiles | Opened EX-Vault 968 | -10/Exiles | Found AWS/Gauss 976 | -10/Exiles | Warned to stay clear of 0b10 Research branches 987 | -10/Exiles | Met EX-DEC 989 | -10/Exiles | Learned location of Zion (-6) 999 | -10/Exiles | Discovered new exit (range 14) 1003 | -10/Exiles | Identified exit to Mines 1004 | -10/Exiles | Left Exiles lab with AWS/Gauss 1004 | -10/Exiles | Entered Mines 1006 | -9/Mines | Discovered new exit (range 9) 1014 | -9/Mines | Learned 4 Materials zone layouts 1018 | -9/Mines | Identified exit to Materials 1019 | -9/Mines | Entered Materials 1019 | -8/Materials | Evolved 4 slots: Propulsion x2, Utility x2 1020 | -8/Materials | Identified exit to Factory 1311 | -8/Materials | Build established: Sprinter 1722 | -8/Materials | Build established: Hacker-Mutant 1759 | -8/Materials | Lost 4 parts (1p2n1u) 1847 | -8/Materials | Garrison activated, responded to threat 2031 | -8/Materials | Build established: Mutant 2032 | -8/Materials | Entered Factory 2032 | -7/Factory | Evolved 2 slots: Utility x2 2173 | -7/Factory | Identified exit to Factory 2365 | -7/Factory | Lost 4 parts (1p1n2u) 2434 | -7/Factory | Core integrity fell below 50% 2435 | -7/Factory | Self-destructed Last Messages --------------- 02389_ Knocked back. 02401_ System corrupted: Heat flow error (+107). 02406_ O-24 Administrator: "IFF HANDSHAKE FAILED. SECURING TERMINAL." 02412_ O-24 Administrator uses terminal to summon reinforcements. 02412_ ALERT: Hostiles spotted, dispatching reinforcements to Terminal F003. 02412_ O-24 Administrator locks terminal. 02414_ O-16 Technician sends out distress signal. 02414_ O-16 Technician: "IFF HANDSHAKE FAILED. SECURING TERMINAL." 02417_ Xenon Bombardment Thruster severed. 02418_ ALERT: Hostiles spotted, dispatching reinforcements to Terminal F017. 02425_ Xenon Bombardment Thruster destroyed. 02426_ Powered Hammer severed. 02427_ Critical hit (Burn: +37). 02434_ Powered Hammer severed. Map ----- +----------------------------------------------------+ | ??????????????????????????????????????????? | | ??????????????????????????????????????????? | | ??????????????????????????????????????????? | | ??????????????????????????????????????????? | | ??????????????????????????????????????????? | | ??????????????????????????????????????????? | | ?????????????????????????????????????##+### | | ???????????????????????????????????# | | ???????????????????????????????????# | | ???????????????????????????????????# | | ???????????????????????????????????# | | ???????????????????????????????????# | | ???????????????????????????????????# | | ???????????????????????????????????+ | | ????????????????????????????????????# # | | ????????????????????????????????????# # | | ????????????????????????????????????# # | | ????????????????????????????????????# # | | ?????????????##########?????????????# # | | ?????????????# #???#+#+####### # | | ?????????????# "" #???# # | | ?????????????# """#???# # | | ?????????????# !! S"#???# "" ]]/ # | | ?????????????# =! """#???# "" ]]/ # | | ?????????????# """#???# "T ]/! # | | ?????????????# @ #???#g "" # | | ?????????????#/ c bgg#?### ""g """ """ # | | ?????????????# c g #?# gh """ """ # | | ????????????#########+### g """ """ | | ????????????# g p | | ????????????# = """ """ """ | | ????????????# """ """ """ | | ???????????# """ """ """ | | ???????????#T w | | ???????????## ####### | | ????????????# ??????# | | ???????????# ???????################### | | ???????????# ?????????????????????????? | | ???????????# ??????????????????????????? | | ???????????+ T??????????????????????????? | | ???????????# ???????????????????????????? | | ???????????# ???????????????????????????? | | ???????????# ????????????????????????????? | | ???????????##?????????????????????????????? | | ??????????????????????????????????????????? | | ??????????????????????????????????????????? | | ??????????????????????????????????????????? | | ??????????????????????????????????????????? | | ??????????????????????????????????????????? | | ??????????????????????????????????????????? | +----------------------------------------------------+ Best States ------------- Heat Dissipation 34 Energy Generation 14 Energy Capacity 250 Matter Stores 300 Matter Capacity 300 Sight Range 16 Robot Scan Range 20 Terrain Scan Density 10 Melee Speed Boost 20 Evasion (%) 71 Melee Accuracy 6 Core Analysis 6 Offensive Hacking 10 Defensive Hacking 20 Item Schematics ----------------- Great Maul | -8/Materials | Hacked Robot Schematics ------------------ None Fabricated ------------ Nothing Alien Tech Used ----------------- None Achievements -------------- root@ Challenges ------------ None Game ------ Seed BombPrecisionNanoactuators Manual? 0 Play Time 00:58:13 Cumulative 107.6 hours Start 2024.03.31 @ 16:58:15 End 2024.03.31 @ 17:57:33 Sessions 1 Manual Loads 0 Difficulty Rogue Special Mode None Game No. 108 Rogue 105 Adventurer 0 Explorer 3 Win Type - Total 0 Types 0/0/0/0/0/0/0/0/0 Lore% 31 Gallery% 47 Achievement% 34 Wizard Run 0 Options --------- Layout 1 ASCII 0 Keyboard 0 Movement Mouse Keybinds 0 Fullscreen 2 Font 48/Terminus Map View 50x35 Zoom Use 0% Tactical HUD 1 Map Filters NONE Filters NONE Steam 1 RUN: e9327147-b7a5-4240-b6ab-9aa4b13a6d23